[Event "*** Titled Tuesday 3|2 Blitz"]
[Site "Chess.com"]
[Date "2016.08.02"]
[Round "2"]
[White "IamSchrodingersCat"]
[Black "chito89"]
[Result "0-1"]
[WhiteElo "2215"]
[BlackElo "2515"]
[TimeControl "180+2"]
[EndTime "11:20:15 PDT"]
[Termination "chito89 won by resignation"]

1. e4 {[%clk 0:03:01.9]} 1... c5 {[%clk 0:02:53.5]} 2. Nf3 {[%clk 0:03:02.3]}
2... e6 {[%clk 0:02:52.3]} 3. d4 {[%clk 0:03:02.6]} 3... cxd4 {[%clk 0:02:52.7]}
4. Nxd4 {[%clk 0:03:04.5]} 4... a6 {[%clk 0:02:54.2]} 5. c4 {[%clk 0:03:05]}
5... b6 {[%clk 0:02:51.2]} 6. Nc3 {[%clk 0:03:02.9]} 6... Bb7 {[%clk 0:02:45.7]}
7. a3 {[%clk 0:03:01.9]} 7... d6 {[%clk 0:02:45.2]} 8. Bd3 {[%clk 0:02:53.3]}
8... Nf6 {[%clk 0:02:46.6]} 9. O-O {[%clk 0:02:52.2]} 9... Nbd7 {[%clk
0:02:47.4]} 10. f4 {[%clk 0:02:43.9]} 10... Qc7 {[%clk 0:02:48.2]} 11. b4 {[%clk
0:02:39.6]} 11... Rc8 {[%clk 0:02:47.7]} 12. Be3 {[%clk 0:02:38.1]} 12... g6
{[%clk 0:02:49]} 13. f5 {[%clk 0:02:00.7]} 13... gxf5 {[%clk 0:02:35.3]} 14.
exf5 {[%clk 0:01:51]} 14... e5 {[%clk 0:02:36.3]} 15. Nb3 {[%clk 0:00:32]} 15...
Rg8 {[%clk 0:02:35.3]} 16. g3 {[%clk 0:00:31.6]} 16... Qc6 {[%clk 0:02:35.2]}
17. Kf2 {[%clk 0:00:12.3]} 17... Ng4+ {[%clk 0:02:33.9]} 18. Ke2 {[%clk
0:00:12.2]} 18... Qg2+ {[%clk 0:02:34.3]} 19. Rf2 {[%clk 0:00:10.3]} 0-1

[Event "*** Titled Tuesday 3|2 Blitz"]
[Site "Chess.com"]
[Date "2016.08.02"]
[Round "2"]
[White "Tesla37"]
[Black "Cryptochess"]
[Result "1-0"]
[WhiteElo "2699"]
[BlackElo "2459"]
[TimeControl "180+2"]
[EndTime "11:20:24 PDT"]
[Termination "Tesla37 won by resignation"]

1. e4 {[%clk 0:03:01.9]} 1... d6 {[%clk 0:03:00.9]} 2. d4 {[%clk 0:03:02.1]}
2... Nf6 {[%clk 0:03:02.5]} 3. Nc3 {[%clk 0:03:03.6]} 3... g6 {[%clk 0:03:04.1]}
4. Be3 {[%clk 0:03:03.7]} 4... c6 {[%clk 0:03:05]} 5. Qd2 {[%clk 0:03:03.9]}
5... b5 {[%clk 0:03:06.5]} 6. a3 {[%clk 0:03:02.2]} 6... Nbd7 {[%clk 0:03:02.1]}
7. h3 {[%clk 0:03:02.5]} 7... e5 {[%clk 0:03:03]} 8. f4 {[%clk 0:03:02.7]} 8...
Bg7 {[%clk 0:02:51]} 9. Nf3 {[%clk 0:03:02.9]} 9... Qe7 {[%clk 0:02:44.2]} 10.
fxe5 {[%clk 0:02:54.6]} 10... dxe5 {[%clk 0:02:46.1]} 11. d5 {[%clk 0:02:55.9]}
11... cxd5 {[%clk 0:02:38.7]} 12. Nxd5 {[%clk 0:02:55.1]} 12... Nxd5 {[%clk
0:02:11.8]} 13. Qxd5 {[%clk 0:02:55.3]} 13... Rb8 {[%clk 0:02:12.4]} 14. Bxa7
{[%clk 0:02:50.7]} 14... Bb7 {[%clk 0:02:12.6]} 15. Qxb5 {[%clk 0:02:47.6]}
15... O-O {[%clk 0:01:47.2]} 16. Bxb8 {[%clk 0:02:47.8]} 16... Rxb8 {[%clk
0:01:49.1]} 17. Qb4 {[%clk 0:02:49]} 17... Qe6 {[%clk 0:01:28.1]} 18. Bc4 {[%clk
0:02:45.1]} 18... Qf6 {[%clk 0:01:24.5]} 19. O-O {[%clk 0:02:33.9]} 19... Bxe4
{[%clk 0:01:24.5]} 20. Bxf7+ {[%clk 0:02:32.3]} 20... Qxf7 {[%clk 0:01:18.7]}
21. Qxe4 {[%clk 0:02:33.8]} 21... Nc5 {[%clk 0:01:20.2]} 22. Qe3 {[%clk
0:02:31.8]} 22... Qc4 {[%clk 0:01:20.3]} 23. b3 {[%clk 0:02:24.9]} 23... Qxc2
{[%clk 0:00:52.7]} 24. Rac1 {[%clk 0:02:23.8]} 24... Rxb3 {[%clk 0:00:49.9]} 25.
Rxc2 {[%clk 0:02:22.6]} 25... Rxe3 {[%clk 0:00:50.9]} 26. Rxc5 {[%clk
0:02:24.2]} 26... e4 {[%clk 0:00:52.6]} 27. Rc8+ {[%clk 0:02:25.4]} 27... Kf7
{[%clk 0:00:51.6]} 28. Ng5+ {[%clk 0:02:14.7]} 1-0

[Event "*** Titled Tuesday 3|2 Blitz"]
[Site "Chess.com"]
[Date "2016.08.02"]
[Round "2"]
[White "Wolverine_master"]
[Black "Fawolizzo"]
[Result "1-0"]
[WhiteElo "2021"]
[BlackElo "2028"]
[TimeControl "180+2"]
[EndTime "11:21:27 PDT"]
[Termination "Wolverine_master won by resignation"]

1. e4 {[%clk 0:03:01.9]} 1... c5 {[%clk 0:02:58.9]} 2. Nf3 {[%clk 0:03:02.7]}
2... d6 {[%clk 0:02:59.2]} 3. d4 {[%clk 0:03:03.7]} 3... cxd4 {[%clk 0:02:58.8]}
4. Nxd4 {[%clk 0:03:05.6]} 4... Nf6 {[%clk 0:02:59.2]} 5. Nc3 {[%clk 0:03:06.3]}
5... a6 {[%clk 0:02:59.8]} 6. Bg5 {[%clk 0:03:05.9]} 6... Nbd7 {[%clk
0:02:58.9]} 7. f4 {[%clk 0:03:06.3]} 7... e6 {[%clk 0:02:50.9]} 8. Qf3 {[%clk
0:03:06.3]} 8... Qc7 {[%clk 0:02:51.1]} 9. O-O-O {[%clk 0:03:05.8]} 9... b5
{[%clk 0:02:50.2]} 10. g4 {[%clk 0:02:56.8]} 10... b4 {[%clk 0:02:43.6]} 11.
Nce2 {[%clk 0:02:48.4]} 11... Bb7 {[%clk 0:02:44.4]} 12. Ng3 {[%clk 0:02:36.4]}
12... d5 {[%clk 0:02:42.4]} 13. e5 {[%clk 0:02:34.4]} 13... Ne4 {[%clk
0:02:40.2]} 14. Bh4 {[%clk 0:02:16.7]} 14... Ndc5 {[%clk 0:02:39.2]} 15. Kb1
{[%clk 0:02:03.1]} 15... Be7 {[%clk 0:02:39]} 16. Bxe7 {[%clk 0:02:02.2]} 16...
Qxe7 {[%clk 0:02:39.6]} 17. Bd3 {[%clk 0:01:59.6]} 17... Rc8 {[%clk 0:02:37.2]}
18. Rhe1 {[%clk 0:01:59.6]} 18... O-O {[%clk 0:02:37.2]} 19. f5 {[%clk
0:01:57.6]} 19... Qg5 {[%clk 0:02:15.6]} 20. Bxe4 {[%clk 0:01:39.9]} 20... dxe4
{[%clk 0:02:13.5]} 21. Qf2 {[%clk 0:01:23.1]} 21... Bd5 {[%clk 0:02:04.1]} 22.
f6 {[%clk 0:01:22.8]} 22... Qxg4 {[%clk 0:01:54.9]} 23. Rg1 {[%clk 0:01:11.4]}
23... Qh4 {[%clk 0:01:49.7]} 24. Ngf5 {[%clk 0:00:48.2]} 24... Qxf2 {[%clk
0:01:41.1]} 25. Ne7+ {[%clk 0:00:48.3]} 1-0

[Event "*** Titled Tuesday 3|2 Blitz"]
[Site "Chess.com"]
[Date "2016.08.02"]
[Round "2"]
[White "Hieronymus00"]
[Black "cabalista"]
[Result "0-1"]
[WhiteElo "2132"]
[BlackElo "2330"]
[TimeControl "180+2"]
[EndTime "11:21:36 PDT"]
[Termination "cabalista won by resignation"]

1. e4 {[%clk 0:03:01.9]} 1... e5 {[%clk 0:03:00.5]} 2. Nf3 {[%clk 0:03:03.1]}
2... Nc6 {[%clk 0:03:01.2]} 3. Bb5 {[%clk 0:03:04.1]} 3... a6 {[%clk 0:03:02.3]}
4. Ba4 {[%clk 0:03:04.7]} 4... d6 {[%clk 0:03:03.8]} 5. c3 {[%clk 0:03:05.2]}
5... Bd7 {[%clk 0:03:04]} 6. O-O {[%clk 0:03:05.8]} 6... Nge7 {[%clk 0:03:03.3]}
7. d4 {[%clk 0:03:05.4]} 7... Ng6 {[%clk 0:03:02.5]} 8. Re1 {[%clk 0:03:05.6]}
8... Be7 {[%clk 0:03:02.6]} 9. Nbd2 {[%clk 0:03:01.6]} 9... O-O {[%clk
0:03:03.2]} 10. Nf1 {[%clk 0:03:02.6]} 10... Bg4 {[%clk 0:03:03.8]} 11. d5
{[%clk 0:02:54]} 11... Nh4 {[%clk 0:02:58]} 12. dxc6 {[%clk 0:02:49.3]} 12...
Bxf3 {[%clk 0:02:57.8]} 13. gxf3 {[%clk 0:02:45.7]} 13... b5 {[%clk 0:02:40.3]}
14. Bb3 {[%clk 0:02:36.3]} 14... Qc8 {[%clk 0:02:40.4]} 15. Kh1 {[%clk
0:00:26.4]} 15... Qh3 {[%clk 0:02:38.2]} 16. Ne3 {[%clk 0:00:26.4]} 16... Nxf3
{[%clk 0:02:35.5]} 17. Qxf3 {[%clk 0:00:17.2]} 17... Qxf3+ {[%clk 0:02:35.7]}
18. Kg1 {[%clk 0:00:18.8]} 18... Bh4 {[%clk 0:02:34.1]} 19. Rf1 {[%clk 0:00:17]}
19... g6 {[%clk 0:02:30.6]} 20. Bd5 {[%clk 0:00:13.7]} 20... Kh8 {[%clk
0:02:28]} 21. Ng2 {[%clk 0:00:11.2]} 21... Be7 {[%clk 0:02:22.5]} 22. Bh6 {[%clk
0:00:10.3]} 22... f5 {[%clk 0:02:20.7]} 23. Bxf8 {[%clk 0:00:09]} 23... Rxf8
{[%clk 0:02:13.9]} 24. Rae1 {[%clk 0:00:10.5]} 24... f4 {[%clk 0:02:14.6]} 25.
Rd1 {[%clk 0:00:09.4]} 25... g5 {[%clk 0:02:14.7]} 26. c4 {[%clk 0:00:08.4]}
26... g4 {[%clk 0:02:09.5]} 27. cxb5 {[%clk 0:00:08.6]} 27... axb5 {[%clk
0:02:10.3]} 28. Rc1 {[%clk 0:00:08.5]} 28... Qh3 {[%clk 0:02:06.8]} 29. Rc3
{[%clk 0:00:07.9]} 29... f3 {[%clk 0:02:07]} 30. Ne1 {[%clk 0:00:05.5]} 30...
Bg5 {[%clk 0:02:06.9]} 0-1

[Event "*** Titled Tuesday 3|2 Blitz"]
[Site "Chess.com"]
[Date "2016.08.02"]
[Round "2"]
[White "dretch"]
[Black "Semetey"]
[Result "1-0"]
[WhiteElo "2617"]
[BlackElo "2425"]
[TimeControl "180+2"]
[EndTime "11:21:37 PDT"]
[Termination "dretch won by resignation"]

1. d4 {[%clk 0:03:01.9]} 1... Nf6 {[%clk 0:03:01]} 2. c4 {[%clk 0:03:02.3]} 2...
e6 {[%clk 0:03:02.2]} 3. Nc3 {[%clk 0:03:03.9]} 3... Bb4 {[%clk 0:03:02.8]} 4.
Qc2 {[%clk 0:03:05.5]} 4... O-O {[%clk 0:03:03.3]} 5. e4 {[%clk 0:03:06.9]} 5...
d5 {[%clk 0:03:03.7]} 6. e5 {[%clk 0:03:08.4]} 6... Ne4 {[%clk 0:03:05]} 7. Bd3
{[%clk 0:03:09.9]} 7... c5 {[%clk 0:02:31.9]} 8. Nf3 {[%clk 0:03:10.9]} 8... Nc6
{[%clk 0:02:30.6]} 9. O-O {[%clk 0:03:09.2]} 9... Nxd4 {[%clk 0:02:17.6]} 10.
Nxd4 {[%clk 0:03:09.9]} 10... cxd4 {[%clk 0:02:19]} 11. Nxe4 {[%clk 0:03:11.2]}
11... dxe4 {[%clk 0:02:20.3]} 12. Bxe4 {[%clk 0:03:12.4]} 12... h6 {[%clk
0:02:21.4]} 13. a3 {[%clk 0:03:12.4]} 13... Be7 {[%clk 0:02:20.3]} 14. Rd1
{[%clk 0:03:09]} 14... Qc7 {[%clk 0:02:21.5]} 15. Bf4 {[%clk 0:03:10]} 15... Rd8
{[%clk 0:02:22.4]} 16. Rd3 {[%clk 0:03:09.2]} 16... Rb8 {[%clk 0:02:16.6]} 17.
Rad1 {[%clk 0:03:08.9]} 17... b5 {[%clk 0:02:17.4]} 18. Rg3 {[%clk 0:02:56.8]}
18... Kh8 {[%clk 0:02:13.9]} 19. Qd2 {[%clk 0:02:47.4]} 19... Bf8 {[%clk
0:02:14.6]} 20. Bg5 {[%clk 0:02:01.2]} 20... Rd7 {[%clk 0:01:21]} 21. Qf4 {[%clk
0:01:57]} 21... f5 {[%clk 0:01:13.7]} 22. exf6 {[%clk 0:01:56.3]} 22... Qxf4
{[%clk 0:01:13.1]} 23. Bxf4 {[%clk 0:01:57.5]} 23... Rb6 {[%clk 0:01:10.8]} 24.
c5 {[%clk 0:01:54.6]} 24... g5 {[%clk 0:00:54.6]} 25. cxb6 {[%clk 0:01:47]}
25... gxf4 {[%clk 0:00:55.1]} 26. bxa7 {[%clk 0:01:42.2]} 26... Rxa7 {[%clk
0:00:55.7]} 27. Rb3 {[%clk 0:01:39.9]} 27... e5 {[%clk 0:00:44.4]} 28. Rxb5
{[%clk 0:01:40.2]} 28... Bd6 {[%clk 0:00:42.8]} 29. Rc1 {[%clk 0:01:38.8]} 29...
Bd7 {[%clk 0:00:43.3]} 30. Rb6 {[%clk 0:01:37]} 30... Bf8 {[%clk 0:00:44.4]} 31.
Rb8 {[%clk 0:01:36.8]} 31... Kg8 {[%clk 0:00:44.2]} 32. Bd5+ {[%clk 0:01:37.4]}
1-0

[Event "*** Titled Tuesday 3|2 Blitz"]
[Site "Chess.com"]
[Date "2016.08.02"]
[Round "2"]
[White "elefante33"]
[Black "Alexander_Moskalenko"]
[Result "0-1"]
[WhiteElo "2441"]
[BlackElo "2631"]
[TimeControl "180+2"]
[EndTime "11:21:47 PDT"]
[Termination "Alexander_Moskalenko won by resignation"]

1. e4 {[%clk 0:03:01.9]} 1... c5 {[%clk 0:03:00.6]} 2. Nf3 {[%clk 0:03:02.1]}
2... d6 {[%clk 0:03:02.5]} 3. Bb5+ {[%clk 0:03:02.8]} 3... Nd7 {[%clk 0:03:03]}
4. d4 {[%clk 0:03:02.4]} 4... Nf6 {[%clk 0:03:00.4]} 5. Nc3 {[%clk 0:03:00.6]}
5... cxd4 {[%clk 0:03:01.8]} 6. Qxd4 {[%clk 0:03:00.2]} 6... e5 {[%clk 0:03:02]}
7. Qd3 {[%clk 0:02:56.9]} 7... h6 {[%clk 0:03:03.5]} 8. O-O {[%clk 0:02:44.7]}
8... a6 {[%clk 0:03:04.9]} 9. Bc4 {[%clk 0:02:40.4]} 9... b5 {[%clk 0:03:02.9]}
10. Bd5 {[%clk 0:02:38.6]} 10... Nxd5 {[%clk 0:03:01.3]} 11. Nxd5 {[%clk
0:02:39.1]} 11... Bb7 {[%clk 0:02:54.6]} 12. Be3 {[%clk 0:02:23]} 12... Be7
{[%clk 0:02:45.6]} 13. a4 {[%clk 0:02:17.6]} 13... bxa4 {[%clk 0:02:36.7]} 14.
Rxa4 {[%clk 0:02:11.8]} 14... O-O {[%clk 0:02:30.4]} 15. Nd2 {[%clk 0:02:01]}
15... Nf6 {[%clk 0:02:23.1]} 16. c4 {[%clk 0:01:42.6]} 16... Bc6 {[%clk
0:02:15.7]} 17. Ra3 {[%clk 0:01:36.4]} 17... Nxd5 {[%clk 0:02:16.9]} 18. exd5
{[%clk 0:01:28.3]} 18... Bd7 {[%clk 0:02:17.9]} 19. Rfa1 {[%clk 0:01:25.5]}
19... Rb8 {[%clk 0:02:17.1]} 20. b3 {[%clk 0:01:25.9]} 20... Bc8 {[%clk
0:02:18.7]} 21. f4 {[%clk 0:01:20.5]} 21... Bf6 {[%clk 0:02:10.7]} 22. fxe5
{[%clk 0:01:19.5]} 22... Bxe5 {[%clk 0:02:12.6]} 23. Bd4 {[%clk 0:01:19.6]}
23... Bxd4+ {[%clk 0:02:07.4]} 24. Qxd4 {[%clk 0:01:20.3]} 24... Re8 {[%clk
0:02:09.3]} 25. Ne4 {[%clk 0:01:16.9]} 25... Qh4 {[%clk 0:01:55]} 26. Qa7 {[%clk
0:00:44.7]} 26... Rb7 {[%clk 0:01:39.6]} 27. Qxa6 {[%clk 0:00:35.5]} 27... Qxe4
{[%clk 0:01:33.4]} 28. Qxd6 {[%clk 0:00:30.1]} 28... Rxb3 {[%clk 0:01:34.5]} 29.
Rxb3 {[%clk 0:00:20.8]} 29... Qd4+ {[%clk 0:01:35.1]} 0-1

[Event "*** Titled Tuesday 3|2 Blitz"]
[Site "Chess.com"]
[Date "2016.08.02"]
[Round "2"]
[White "awb2001"]
[Black "MMSANCHEZ"]
[Result "0-1"]
[WhiteElo "2320"]
[BlackElo "2286"]
[TimeControl "180+2"]
[EndTime "11:21:57 PDT"]
[Termination "MMSANCHEZ won by resignation"]

1. e4 {[%clk 0:03:01.9]} 1... e6 {[%clk 0:02:59.4]} 2. d4 {[%clk 0:03:02.1]}
2... d5 {[%clk 0:03:00.5]} 3. Nc3 {[%clk 0:03:03.1]} 3... Nc6 {[%clk 0:03:01.4]}
4. e5 {[%clk 0:02:59.4]} 4... f6 {[%clk 0:03:01.9]} 5. f4 {[%clk 0:02:59.4]}
5... fxe5 {[%clk 0:02:48.6]} 6. dxe5 {[%clk 0:02:59.5]} 6... Bc5 {[%clk
0:02:49.1]} 7. Nf3 {[%clk 0:02:59.6]} 7... Nh6 {[%clk 0:02:47.3]} 8. Bd3 {[%clk
0:02:59.5]} 8... O-O {[%clk 0:02:38.6]} 9. Na4 {[%clk 0:02:55.7]} 9... Be7
{[%clk 0:02:37.1]} 10. Bd2 {[%clk 0:02:41.7]} 10... Bd7 {[%clk 0:02:36.6]} 11.
Nc3 {[%clk 0:02:39.4]} 11... Nb4 {[%clk 0:02:36.4]} 12. Be2 {[%clk 0:02:33.5]}
12... c5 {[%clk 0:02:32.6]} 13. O-O {[%clk 0:02:22.4]} 13... a6 {[%clk
0:02:26.6]} 14. Qe1 {[%clk 0:02:13.2]} 14... Nxc2 {[%clk 0:02:27.1]} 15. Qg3
{[%clk 0:02:01.8]} 15... Nxa1 {[%clk 0:02:26.4]} 16. Rxa1 {[%clk 0:02:03.7]}
16... Bc6 {[%clk 0:02:26.6]} 17. Nd1 {[%clk 0:01:57]} 17... d4 {[%clk
0:02:27.6]} 18. Bd3 {[%clk 0:01:56.2]} 18... b5 {[%clk 0:02:23.5]} 19. b3 {[%clk
0:01:57.2]} 19... Qd5 {[%clk 0:02:21.7]} 20. Nf2 {[%clk 0:01:57.1]} 20... Nf5
{[%clk 0:02:18.8]} 21. Qh3 {[%clk 0:01:57.6]} 21... c4 {[%clk 0:02:16.4]} 22.
Be4 {[%clk 0:01:38.1]} 22... Qd7 {[%clk 0:02:15.9]} 23. g4 {[%clk 0:01:31.5]}
23... Bxe4 {[%clk 0:02:01.4]} 24. Nxe4 {[%clk 0:01:31.6]} 24... Ne3 {[%clk
0:02:02.5]} 25. g5 {[%clk 0:01:15.1]} 25... Rxf4 {[%clk 0:01:54.8]} 26. g6
{[%clk 0:01:16.2]} 26... Rg4+ {[%clk 0:01:53.6]} 27. Kh1 {[%clk 0:01:15.6]}
27... Rxg6 {[%clk 0:01:53.7]} 28. Rg1 {[%clk 0:00:57.9]} 28... Rxg1+ {[%clk
0:01:53.4]} 29. Kxg1 {[%clk 0:00:59.8]} 29... Rf8 {[%clk 0:01:49.2]} 30. Kf2
{[%clk 0:00:43.3]} 30... Qd5 {[%clk 0:01:35.9]} 31. Ke1 {[%clk 0:00:19.7]} 31...
Qxe4 {[%clk 0:01:28.8]} 0-1

[Event "*** Titled Tuesday 3|2 Blitz"]
[Site "Chess.com"]
[Date "2016.08.02"]
[Round "2"]
[White "MattyDPerrine"]
[Black "ChessWarrior7197"]
[Result "0-1"]
[WhiteElo "2214"]
[BlackElo "2483"]
[TimeControl "180+2"]
[EndTime "11:22:02 PDT"]
[Termination "ChessWarrior7197 won on time"]

1. d4 {[%clk 0:02:58]} 1... Nf6 {[%clk 0:03:00.3]} 2. Nf3 {[%clk 0:02:58.7]}
2... e6 {[%clk 0:03:01.2]} 3. c4 {[%clk 0:02:57.2]} 3... d5 {[%clk 0:03:01.7]}
4. Nc3 {[%clk 0:02:58.1]} 4... Be7 {[%clk 0:03:01.9]} 5. cxd5 {[%clk 0:02:59.2]}
5... exd5 {[%clk 0:03:02.3]} 6. Bg5 {[%clk 0:03:00.8]} 6... O-O {[%clk
0:03:03.5]} 7. e3 {[%clk 0:02:57.9]} 7... c6 {[%clk 0:03:04.7]} 8. Qc2 {[%clk
0:02:57.9]} 8... Nbd7 {[%clk 0:03:05.4]} 9. Bd3 {[%clk 0:02:58.6]} 9... Re8
{[%clk 0:03:06.5]} 10. O-O {[%clk 0:02:59.3]} 10... h6 {[%clk 0:03:07.6]} 11.
Bh4 {[%clk 0:03:00.3]} 11... Ne4 {[%clk 0:03:08.1]} 12. Bxe7 {[%clk 0:03:00]}
12... Qxe7 {[%clk 0:03:08.2]} 13. Bxe4 {[%clk 0:02:57.5]} 13... dxe4 {[%clk
0:03:09.1]} 14. Nd2 {[%clk 0:02:59]} 14... Nf6 {[%clk 0:03:10.2]} 15. Nc4 {[%clk
0:02:59.9]} 15... Bf5 {[%clk 0:03:06]} 16. Rab1 {[%clk 0:02:54.2]} 16... Nd5
{[%clk 0:03:06.3]} 17. Qb3 {[%clk 0:02:34.5]} 17... Rad8 {[%clk 0:03:02.8]} 18.
Na5 {[%clk 0:02:29.9]} 18... Nb6 {[%clk 0:03:03.7]} 19. Qc2 {[%clk 0:02:11.4]}
19... Nd5 {[%clk 0:02:53]} 20. Qb3 {[%clk 0:02:10.2]} 20... Bc8 {[%clk
0:02:53.8]} 21. Na4 {[%clk 0:02:01.9]} 21... Rd6 {[%clk 0:02:40.9]} 22. Qa3
{[%clk 0:01:50]} 22... Qc7 {[%clk 0:02:34.5]} 23. b4 {[%clk 0:01:44.8]} 23...
Rg6 {[%clk 0:02:33.9]} 24. Kh1 {[%clk 0:01:24.6]} 24... b6 {[%clk 0:02:29]} 25.
Nb3 {[%clk 0:01:06.7]} 25... Qd7 {[%clk 0:02:29.9]} 26. Rg1 {[%clk 0:01:06.3]}
26... Qf5 {[%clk 0:02:30.9]} 27. Rbf1 {[%clk 0:01:00.1]} 27... Rg5 {[%clk
0:02:25.4]} 28. Nb2 {[%clk 0:00:19.6]} 28... Nf6 {[%clk 0:02:24.4]} 29. f3
{[%clk 0:00:11.3]} 29... exf3 {[%clk 0:02:18.7]} 30. Rxf3 {[%clk 0:00:13.2]}
30... Qd5 {[%clk 0:02:13.5]} 31. Nd2 {[%clk 0:00:08.7]} 31... Ng4 {[%clk
0:02:12.9]} 32. h3 {[%clk 0:00:04.1]} 32... Rh5 {[%clk 0:01:57.2]} 33. Qd3
{[%clk 0:00:05.1]} 33... Nf2+ {[%clk 0:01:57.9]} 0-1

[Event "*** Titled Tuesday 3|2 Blitz"]
[Site "Chess.com"]
[Date "2016.08.02"]
[Round "2"]
[White "jcibarra"]
[Black "Journey_to_GrandMaster_YT"]
[Result "1-0"]
[WhiteElo "2668"]
[BlackElo "2450"]
[TimeControl "180+2"]
[EndTime "11:22:26 PDT"]
[Termination "jcibarra won by resignation"]

1. e4 {[%clk 0:03:01.9]} 1... d6 {[%clk 0:03:01.2]} 2. d4 {[%clk 0:03:02.6]}
2... Nf6 {[%clk 0:03:02.4]} 3. Nc3 {[%clk 0:03:03.1]} 3... e5 {[%clk 0:03:04]}
4. Nf3 {[%clk 0:03:04.2]} 4... Nbd7 {[%clk 0:03:05.1]} 5. Bc4 {[%clk 0:03:05.4]}
5... Be7 {[%clk 0:03:06.7]} 6. a4 {[%clk 0:03:06.7]} 6... O-O {[%clk 0:03:07.6]}
7. O-O {[%clk 0:03:08.2]} 7... c6 {[%clk 0:03:09.1]} 8. Re1 {[%clk 0:03:09.4]}
8... a5 {[%clk 0:03:09.9]} 9. h3 {[%clk 0:03:08.1]} 9... Nb6 {[%clk 0:03:10.7]}
10. Bb3 {[%clk 0:03:07.3]} 10... Nfd7 {[%clk 0:03:11.4]} 11. Be3 {[%clk
0:03:08.6]} 11... exd4 {[%clk 0:03:11.9]} 12. Bxd4 {[%clk 0:03:10.5]} 12... Nc5
{[%clk 0:03:13.4]} 13. Bxc5 {[%clk 0:03:12.1]} 13... dxc5 {[%clk 0:03:14.7]} 14.
Qe2 {[%clk 0:03:13.9]} 14... Qd6 {[%clk 0:03:15.4]} 15. Qe3 {[%clk 0:03:12.6]}
15... Qg6 {[%clk 0:03:03.3]} 16. Ne2 {[%clk 0:03:10.5]} 16... Bd7 {[%clk
0:02:09.1]} 17. Ne5 {[%clk 0:02:58.9]} 17... Qf6 {[%clk 0:02:09]} 18. Nxd7
{[%clk 0:02:33]} 18... Nxd7 {[%clk 0:02:09.3]} 19. Rad1 {[%clk 0:02:34.6]} 19...
Rad8 {[%clk 0:02:05.3]} 20. c3 {[%clk 0:02:26.6]} 20... Qg6 {[%clk 0:01:43.9]}
21. e5 {[%clk 0:01:48.4]} 21... Kh8 {[%clk 0:01:35.7]} 22. e6 {[%clk 0:01:33.8]}
22... fxe6 {[%clk 0:01:34.4]} 23. Nf4 {[%clk 0:01:29.5]} 23... Qf6 {[%clk
0:00:49.1]} 24. Nxe6 {[%clk 0:01:26.3]} 24... Nb6 {[%clk 0:00:45]} 25. Nxf8
{[%clk 0:01:16.9]} 25... Rxd1 {[%clk 0:00:43.9]} 26. Rxd1 {[%clk 0:01:15.4]}
26... Qxf8 {[%clk 0:00:40.5]} 27. Re1 {[%clk 0:01:12.5]} 27... Bd6 {[%clk
0:00:35.7]} 28. Qe8 {[%clk 0:01:12.3]} 28... g6 {[%clk 0:00:32.2]} 29. Qxf8+
{[%clk 0:01:12.4]} 29... Bxf8 {[%clk 0:00:32.8]} 30. Re8 {[%clk 0:01:14.3]}
30... Kg7 {[%clk 0:00:34.4]} 31. Rb8 {[%clk 0:01:14.8]} 31... Kh6 {[%clk
0:00:20.8]} 32. Rxf8 {[%clk 0:01:13.7]} 1-0

[Event "*** Titled Tuesday 3|2 Blitz"]
[Site "Chess.com"]
[Date "2016.08.02"]
[Round "2"]
[White "Nadtkins"]
[Black "Genghis_K"]
[Result "0-1"]
[WhiteElo "2454"]
[BlackElo "2701"]
[TimeControl "180+2"]
[EndTime "11:22:41 PDT"]
[Termination "Genghis_K won by resignation"]

1. Nf3 {[%clk 0:02:57.2]} 1... Nf6 {[%clk 0:02:59.1]} 2. g3 {[%clk 0:02:58.4]}
2... g6 {[%clk 0:03:00.5]} 3. b3 {[%clk 0:02:59.9]} 3... Bg7 {[%clk 0:03:01.7]}
4. Bb2 {[%clk 0:03:01.8]} 4... O-O {[%clk 0:03:03]} 5. Bg2 {[%clk 0:03:03.3]}
5... d6 {[%clk 0:03:04.5]} 6. d4 {[%clk 0:03:04.1]} 6... c5 {[%clk 0:03:03]} 7.
c4 {[%clk 0:03:04.2]} 7... Nc6 {[%clk 0:03:03.2]} 8. d5 {[%clk 0:02:50]} 8...
Na5 {[%clk 0:03:00.4]} 9. O-O {[%clk 0:02:50.6]} 9... a6 {[%clk 0:02:58.2]} 10.
Nbd2 {[%clk 0:02:49.3]} 10... b5 {[%clk 0:02:57.9]} 11. Qc2 {[%clk 0:02:44.5]}
11... Rb8 {[%clk 0:02:56.9]} 12. Rab1 {[%clk 0:02:43.8]} 12... e5 {[%clk
0:02:42.3]} 13. e4 {[%clk 0:02:38]} 13... Nh5 {[%clk 0:02:30]} 14. Nh4 {[%clk
0:02:30.7]} 14... Nf4 {[%clk 0:02:27.5]} 15. gxf4 {[%clk 0:02:01.3]} 15... Qxh4
{[%clk 0:02:27.4]} 16. fxe5 {[%clk 0:01:56.4]} 16... dxe5 {[%clk 0:02:20.2]} 17.
f4 {[%clk 0:01:42.4]} 17... bxc4 {[%clk 0:02:16.3]} 18. Bxe5 {[%clk 0:01:35]}
18... cxb3 {[%clk 0:02:07.8]} 19. axb3 {[%clk 0:01:31.6]} 19... Rb5 {[%clk
0:01:43.5]} 20. Nf3 {[%clk 0:01:18.2]} 20... Qd8 {[%clk 0:01:31.5]} 21. Bxg7
{[%clk 0:01:10]} 21... Kxg7 {[%clk 0:01:33.4]} 22. Rfd1 {[%clk 0:01:11.1]} 22...
Qb6 {[%clk 0:01:33.6]} 23. Kh1 {[%clk 0:01:05.5]} 23... Bg4 {[%clk 0:01:31]} 24.
d6 {[%clk 0:01:01.4]} 24... Nxb3 {[%clk 0:01:22.4]} 25. Qc3+ {[%clk 0:00:39.6]}
25... Kg8 {[%clk 0:01:08.2]} 26. Ne5 {[%clk 0:00:18.9]} 26... Bxd1 {[%clk
0:00:58.7]} 27. Rxd1 {[%clk 0:00:20.8]} 27... Nd4 {[%clk 0:00:57.4]} 28. Nd7
{[%clk 0:00:21.6]} 28... Qxd6 {[%clk 0:00:48.8]} 0-1